fUSD/lending_fUSD_20240127
["ID","MTS","AMOUNT","RATE_DAILY","PERIOD"]
[312860371,1706373040817,-150.77,0.00041,2]
[312860373,1706373040826,-150.77,0.00041,2]
[312860376,1706373040836,-150.77,0.00041,2]
[312860377,1706373040845,-150.77,0.00041,2]
[312860379,1706373040855,-150.77,0.00041,2]
[312860382,1706373040864,-150.77,0.00041,2]
[312860384,1706373040874,-150.77,0.00041,2]
[312860386,1706373040883,-150.77,0.00041,2]
[312860388,1706373040892,-150.77,0.00041,2]
[312860390,1706373040901,-150.77,0.00041,2]
[312860392,1706373040910,-150.77,0.00041,2]
[312860394,1706373040919,-150.77,0.00041,2]
[312860396,1706373040929,-150.77,0.00041,2]
[312860397,1706373040937,-150.77,0.00041,2]
[312860399,1706373040947,-150.77,0.00041,2]
[312860401,1706373040956,-150.77,0.00041,2]
[312860403,1706373040965,-150.77,0.00041,2]
[312860405,1706373040975,-150.77,0.00041,2]
[312860408,1706373040984,-150.77,0.00041,2]
[312860409,1706373040993,-150.77,0.00041,2]
[312860411,1706373041002,-150.77,0.00041,2]
[312860413,1706373041011,-150.77,0.00041,2]
[312860415,1706373041021,-150.77,0.00041,2]
[312860418,1706373041030,-150.77,0.00041,2]
[312860420,1706373041039,-150.77,0.00041,2]
[312860422,1706373041049,-150.77,0.00041,2]
[312860424,1706373041059,-150.77,0.00041,2]
[312860426,1706373041068,-150.77,0.00041,2]
[312860428,1706373041077,-150.77,0.00041,2]
[312860430,1706373041086,-150.77,0.00041,2]
[312860432,1706373041096,-150.77,0.00041,2]
[312860433,1706373041106,-150.77,0.00041,2]
[312860436,1706373041116,-150.77,0.00041,2]
[312860438,1706373041126,-154.45899139,0.00041043,10]
[312860439,1706373041135,-3393.90806942,0.00041072,15]
[312860442,1706373041144,-197.65,0.00041102,2]
[312860444,1706373041155,-7040.72567535,0.00041154,3]
[312860446,1706373041167,-640.38505409,0.00041227,10]
[312860447,1706373041177,-17154.25,0.000413,7]
[312860449,1706373041187,-49399.74,0.000413,7]
[312860452,1706373041196,-150.0,0.00041384,2]
[312860454,1706373041206,-353.72680467,0.00041417,4]
[312860455,1706373041217,-22842.12742615,0.00041425,4]
[312860456,1706373041229,-15000.0,0.00041441,3]
[312860458,1706373041238,-230.7571475,0.00041522,4]
[312860461,1706373041248,-551.86,0.00041644,2]
[312860462,1706373041257,-55555.0,0.00041681,5]
[312860465,1706373041266,-319.02655035,0.0004177,60]
[312860467,1706373041275,-150.0,0.0004178,3]
[312860468,1706373041284,-150.0,0.0004178,3]
[312860470,1706373041293,-384662.17627145,0.00041781,2]
[312860473,1706373041302,-150.52637103,0.0004179,30]
[312860474,1706373041312,-151.08297633,0.00041799,10]
[312860477,1706373041324,-6196.3376718,0.000418,37]
[312860479,1706373041333,-1200.0,0.000418,15]
[312860480,1706373041342,-1660.0746448,0.00041828,2]
[312860482,1706373041351,-1328.0876061,0.00041828,2]
[312860485,1706373041364,-5528.5487918,0.00041828,2]
[312860487,1706373041373,-4425.3182033,0.00041828,2]
[312860489,1706373041382,-2980.9117511,0.00041829,2]
[312860491,1706373041390,-2386.0661326,0.00041829,2]
[312860493,1706373041399,-308.21443755,0.00041833,60]
[312860494,1706373041408,-319.02655035,0.00041834,60]
[312860496,1706373041417,-230.0,0.00041835,4]
[312860499,1706373041427,-171.86365915,0.00041835,4]
[312860500,1706373041436,-155.18158336,0.00041835,4]
[312860502,1706373041445,-158.77601689,0.00041835,4]
[312860505,1706373041454,-1709.04497142,0.00041835,4]
[312860506,1706373041463,-249.62635525,0.00041835,4]
[312860508,1706373041472,-245.75882796,0.00041835,4]
[312860510,1706373041481,-1071.00732196,0.00041835,4]
[312860512,1706373041491,-265.49770567,0.00041835,4]
[312860515,1706373041500,-1143.78063177,0.00041835,4]
[312860516,1706373041509,-202.6537974,0.00041835,4]
[312860518,1706373041518,-260.15368191,0.00041835,4]
[312860521,1706373041527,-5218.38418036,0.00041835,4]
[312860522,1706373041536,-397.70595605,0.00041835,4]
[312860524,1706373041546,-2146.87991109,0.00041835,4]
[312860526,1706373041555,-155.0,0.00041835,4]
[312860528,1706373041564,-162.18930337,0.00041835,4]
[312860530,1706373041573,-155.80487351,0.00041835,4]
[312860532,1706373041582,-364.29623215,0.00041835,4]
[312860534,1706373041591,-155.0,0.00041835,4]
[312860536,1706373041600,-298.58309965,0.00041835,4]
[312860538,1706373041609,-156.36940979,0.00041835,4]
[312860540,1706373041618,-186.83969144,0.00041835,4]
[312860542,1706373041627,-332.40032999,0.00041835,4]
[312860544,1706373041634,-217.01105486,0.00041835,4]
[312860546,1706373041643,-2321.21340696,0.00041835,4]
[312860548,1706373041652,-759.77979759,0.00041835,5]
[312860550,1706373041661,-882.40356599,0.00041836,4]
[312860552,1706373041670,-308.21443755,0.00041841,60]
[312860554,1706373041678,-81454.1654206,0.00041841,2]
[312860556,1706373041687,-205.0,0.00041843,31]
[312860558,1706373041696,-155.53370047,0.00041843,4]
[312860560,1706373041705,-155.0,0.00041843,4]
[312860562,1706373041715,-1041.52724477,0.00041843,4]
[312860564,1706373041724,-523.73781375,0.00041843,4]
[312860566,1706373041733,-155.26565637,0.00041845,4]
[312860567,1706373041743,-429.01752209,0.00041847,7]
[312860568,1706373041752,-196.94908227,0.00041847,4]
[312860569,1706373041761,-3491.782445,0.00041848,4]
[312860570,1706373041770,-150.0,0.00041855,3]
[312860571,1706373041779,-150.0,0.00041855,3]
[312860572,1706373041788,-150.0,0.00041855,3]
[312860573,1706373041798,-150.0,0.00041855,3]
[312860575,1706373041807,-150.0,0.00041855,3]
[312860576,1706373041815,-150.0,0.00041855,3]
[312860578,1706373041824,-235.89482651,0.00041858,120]
[312860580,1706373041833,-6011.13824563,0.00041858,7]
[312860582,1706373041842,-114130.93492959,0.00041858,7]
[312860612,1706373042121,-485.60648912,0.00041858,7]
[312860613,1706373042132,-7511.69383817,0.00041858,7]
[312860614,1706373042143,-3619.63100154,0.00041858,7]
[312860615,1706373042154,-703.75012937,0.00041858,7]
[312860617,1706373042303,-179.367,0.00040068,2]
[312860618,1706373042314,-150.77,0.00041,2]
[312860619,1706373042325,-169.0,0.00041,14]
[312860620,1706373042334,-150.77,0.0004129,2]
[312860621,1706373042345,-150.77,0.0004129,2]
[312860622,1706373042355,-150.77,0.00041431,2]
[312860623,1706373042365,-150.77,0.00041671,2]
[312860624,1706373042374,-150.77,0.00041771,2]
[312860625,1706373042384,-150.77,0.00041771,2]
[312860626,1706373042393,-150.77,0.00041771,2]
[312860627,1706373042402,-150.77,0.00041771,2]
[312860628,1706373042411,-150.77,0.00041771,2]
[312860629,1706373042421,-150.77,0.00041771,2]
[312860630,1706373042430,-150.77,0.00041771,2]
[312860632,1706373042439,-150.77,0.00041771,2]
[312860634,1706373042448,-150.77,0.00041771,2]
[312860636,1706373042457,-150.77,0.00041771,2]
[312860638,1706373042466,-645.07210633,0.00041858,7]
[312860640,1706373042478,-8678.55967167,0.00041858,7]
[312860642,1706373042489,-1758.93979561,0.00041858,7]
[312860644,1706373042501,-269.2302333,0.00041858,7]
[312860647,1706373042512,-10448.13651512,0.00041858,7]
[312860649,1706373042526,-688.01099075,0.00041858,7]
[312860652,1706373042541,-286.75,0.00040068,2]
[312860654,1706373042551,-1895.638757,0.00041858,7]
[312860656,1706373042563,-467.17556613,0.00041858,7]
[312860658,1706373042574,-4265.39244857,0.00041858,7]
[312860661,1706373042590,-150.77,0.00041825,2]
[312860663,1706373042599,-4739.84900897,0.00041858,7]
[312860664,1706373042608,-3043.94278216,0.00041858,30]
[312860670,1706373042652,-150.77,0.00041831,2]
[312860672,1706373042661,-150.77,0.00041831,2]
[312860674,1706373042670,-150.77,0.00041848,2]
[312860676,1706373042679,-27008.36195878,0.00041858,30]
[312860678,1706373042689,-378.46524913,0.00041858,120]
[312860680,1706373042698,-20536.6769,0.00041858,7]
[312860682,1706373042707,-45897.51998799,0.00041858,2]
[312860686,1706373042731,-150.77,0.00041848,2]
[312860688,1706373042740,-483.89,0.00041858,2]
[312860707,1706373043368,-741.91047136,0.00040068,2]
[312860708,1706373043424,-450.0,0.00040068,2]
[312860709,1706373043481,-40.08952864,0.00040068,2]
[312860710,1706373043491,-150.77,0.00041848,2]
[312860711,1706373043500,-150.77,0.00041848,2]
[312860712,1706373043509,-113.30934371,0.00041848,2]
[312860713,1706373043538,-37.46065629,0.00041848,2]
[312860714,1706373043547,-150.77,0.00041848,2]
[312860715,1706373043556,-150.77,0.00041848,2]
[312860716,1706373043565,-150.77,0.00041848,2]
[312860717,1706373043574,-150.77,0.00041848,2]
[312860718,1706373043584,-150.77,0.00041848,2]
[312860719,1706373043593,-150.77,0.00041848,2]
[312860720,1706373043602,-150.77,0.00041848,2]
[312860721,1706373043611,-150.77,0.00041848,2]
[312860722,1706373043619,-6600.68062706,0.00041858,2]
[312860723,1706373043630,-450.0,0.00041858,2]
[312860724,1706373043653,-2945.30622556,0.00041858,2]
[312860726,1706373043665,-2118.24426635,0.00041858,2]
[312860728,1706373043676,-10445.66021192,0.00041858,2]
[312860757,1706373046374,-386.72769275,0.00040066,4]
[312860758,1706373046383,-1207.81945358,0.00040067,4]
[312860759,1706373046392,-158.13484733,0.00040067,4]
[312860760,1706373046402,-332.0567643,0.00041812,2]
[312860761,1706373046412,-332.0567643,0.00041829,2]
[312860762,1706373046421,-150.77,0.00041848,2]
[312860763,1706373046430,-150.77,0.00041848,2]
[312860764,1706373046439,-150.77,0.00041848,2]
[312860765,1706373046448,-150.77,0.00041848,2]
[312860766,1706373046458,-150.77,0.00041848,2]
[312860767,1706373046467,-150.77,0.00041848,2]
[312860768,1706373046477,-150.77,0.00041848,2]
[312860769,1706373046486,-150.77,0.00041848,2]
[312860770,1706373046495,-150.77,0.00041848,2]
[312860771,1706373046504,-150.77,0.00041848,2]
[312860772,1706373046512,-150.77,0.00041848,2]
[312860773,1706373046521,-150.77,0.00041848,2]
[312860774,1706373046531,-150.77,0.00041848,2]
[312860775,1706373046540,-150.77,0.00041848,2]
[312860776,1706373046550,-1094.0,0.00041858,7]
[312860777,1706373046559,-339.18210484,0.00041858,2]
[312860778,1706373046570,-525.22306113,0.00041858,2]
[312860779,1706373046589,-359.24718817,0.00041858,2]
[312860780,1706373046601,-892.9623729,0.00041858,2]
[312860781,1706373046660,-6304.60792659,0.00041858,2]
[312860782,1706373046669,-140866.6002169,0.00041858,120]
[312860783,1706373046681,-496.28,0.00041858,120]
[312860784,1706373046692,-252.91500454,0.00041858,120]
[312860794,1706373124203,204.0,0.00022346,2]
[312860795,1706373139088,155.0,0.00022346,2]
[312860796,1706373140550,235.27972236,0.00022346,2]
[312860797,1706373157095,155.0,0.00022346,2]
[312860798,1706373160451,235.27972236,0.00022346,2]
[312860799,1706373175101,220.09282609,0.00022346,2]
[312860800,1706373178453,233.67123696,0.00022346,2]
[312860805,1706373571383,1035.01993062,0.00022346,2]
[312860806,1706373571407,2473.34343839,0.00022346,2]
[312860807,1706373571432,1686.59087076,0.00022346,2]
[312860808,1706373585372,786.75256763,0.00022346,2]
[312860809,1706373585396,2473.34343839,0.00022346,2]
[312860810,1706373585420,1929.42714237,0.00022346,2]
[312860811,1706373587256,155.0,0.00022346,2]
[312860812,1706373592374,155.0,0.00022346,2]
[312860813,1706373617876,233.91629602,0.00022346,2]
[312860814,1706373617900,756.6844084,0.00022346,2]
[312860815,1706373618095,1716.65902999,0.00022346,2]
[312860816,1706373618118,2473.34343839,0.00022346,2]
[312860817,1706373618143,1905.21418569,0.00022346,2]
[312860818,1706373638095,568.1292527,0.00022346,2]
[312860819,1706373638118,2473.34343839,0.00022346,2]
[312860820,1706373638141,2473.34343839,0.00022346,2]
[312860821,1706373638164,635.63785831,0.00022346,2]
[312860824,1706373990222,375.16664522,0.00022346,2]
[312860827,1706374214794,572.2,0.00025749,10]
[312860828,1706374214999,572.2,0.0002638,10]
[312860841,1706374231521,-580.85669802,0.00023292,2]
[312860842,1706374231531,-3035.32511196,0.00023293,2]
[312860843,1706374231540,-1815.13226475,0.00023293,2]
[312860844,1706374231549,-1855.69106957,0.00023294,2]
[312860845,1706374231559,-717.650743,0.00023295,2]
[312860846,1706374231569,-10572.76791723,0.00023411,2]
[312860847,1706374231579,-16793.31208457,0.00023412,2]
[312860848,1706374231589,-2907.00228459,0.00023413,2]
[312860849,1706374231599,-337.81553176,0.00023413,2]
[312860850,1706374231608,-652.71323299,0.00023413,2]
[312860851,1706374231618,-302.79374032,0.00023414,2]
[312860852,1706374231627,-1052.17110452,0.00023414,2]
[312860853,1706374231637,-279.83597365,0.00023414,2]
[312860854,1706374231647,-155.0,0.00023414,2]
[312860855,1706374231657,-203.43210543,0.00023415,2]
[312860856,1706374231666,-362.37352791,0.00023415,2]
[312860857,1706374231675,-310.72171271,0.00023416,2]
[312860858,1706374231685,-4433.37368968,0.00023416,2]
[312860859,1706374231698,-62.47136282,0.00023416,2]
[312860860,1706374231707,-504.85794256,0.00023416,2]
[312860861,1706374231718,-1062.79532601,0.00023416,2]
[312860862,1706374231731,-155.0,0.00023416,2]
[312860863,1706374231741,-684.87536861,0.00023441,2]
[312860864,1706374231752,-669.27433139,0.00023441,2]
[312860866,1706374231761,-100.72566861,0.00023668,2]
[312860869,1706374231773,-673.29832,0.00023668,2]
[312860871,1706374231784,-321.72355162,0.00023668,2]
[312860873,1706374231794,-678.27644838,0.00024658,2]
[312860876,1706374231817,-666.80355162,0.00024658,2]
[312860878,1706374231827,-435.04507751,0.00025,2]
[312860880,1706374231836,-200.0,0.00025,2]
[312860882,1706374231845,-411.54146539,0.00025,2]
[312860886,1706374231860,-88.44853461,0.00025,2]
[312860889,1706374231869,-516.55146539,0.0002509,2]
[312860890,1706374231880,-757.37624441,0.0002509,2]
[312860891,1706374231892,-71.1522902,0.0002509,2]
[312860892,1706374231901,-1345.08,0.00025523,2]
[312860893,1706374231911,-143.92886314,0.00025589,2]
[312860894,1706374231922,-475.57113686,0.00025589,2]
[312860895,1706374231931,-1345.08,0.00025955,2]
[312860896,1706374231941,-158.63,0.0002611,2]
[312860897,1706374231950,-158.63,0.00026262,2]
[312860898,1706374231959,-1345.08,0.00026388,2]
[312860899,1706374231968,-158.63,0.00026413,2]
[312860900,1706374231977,-891.99,0.00026464,2]
[312860901,1706374231986,-158.63,0.00026564,2]
[312860902,1706374231995,-654.54,0.00026611,2]
[312860903,1706374232004,-158.63,0.00026715,2]
[312860904,1706374232014,-250.0,0.00026805,2]
[312860905,1706374232023,-1345.08,0.0002682,2]
[312860906,1706374232033,-158.63,0.00026866,2]
[312860907,1706374232042,-1705.39,0.00026888,2]
[312860908,1706374232054,-416.94359411,0.00027,2]
[312860909,1706374232063,-572.2,0.00027011,10]
[312860910,1706374232073,-158.63,0.00027018,2]
[312860911,1706374232081,-158.63,0.00027169,2]
[312860912,1706374232091,-1000.0,0.00027186,2]
[312860913,1706374232100,-2000.0,0.00027186,2]
[312860914,1706374232109,-1345.08,0.00027253,2]
[312860915,1706374232119,-158.63,0.0002732,2]
[312860916,1706374232128,-250.0,0.00027466,2]
[312860917,1706374232137,-158.63,0.00027471,2]
[312860918,1706374232146,-229.57187333,0.000275,2]
[312860919,1706374232155,-188.63,0.00027534,2]
[312860920,1706374232165,-528.39950348,0.00027585,3]
[312860921,1706374232174,-200.0,0.00027638,2]
[312860922,1706374232183,-572.2,0.00027642,10]
[312860923,1706374232193,-225.94720434,0.00027668,2]
[312860924,1706374232203,-178.49867064,0.00027668,2]
[312860925,1706374232212,-509.22010843,0.00027668,2]
[312860926,1706374232222,-1254.84755188,0.00027668,2]
[312860927,1706374232231,-497.87825399,0.00027668,2]
[312860928,1706374232241,-184.77981935,0.00027669,2]
[312860929,1706374232250,-941.96786961,0.0002767,2]
[312860930,1706374232259,-482.54614853,0.0002767,2]
[312860931,1706374232268,-1127.44,0.00027671,2]
[312860932,1706374232278,-302.75,0.00027675,2]
[312860933,1706374232287,-160024.87801765,0.00027685,2]
[312860934,1706374232304,-601.42389288,0.00027685,2]
[312860935,1706374232316,-639.29473813,0.00027685,2]
[312860939,1706374237501,-160.47248,0.00023194,2]
[312860940,1706374237511,-305.08670947,0.00027685,2]
[312860941,1706374237522,-307.60963438,0.00027685,2]
[312860942,1706374237558,-40865.24291392,0.00027685,2]
[312860943,1706374237673,-35066.57415626,0.00027685,2]
[312860944,1706374237682,-1345.08,0.00027686,2]
[312860945,1706374237691,-150.0,0.00028,2]
[312860946,1706374237700,-1345.08,0.00028118,2]
[312860947,1706374237709,-572.2,0.00028273,10]
[312860948,1706374237720,-1345.08,0.00028551,2]
[312860949,1706374237733,-1127.44,0.00028695,2]
[312860950,1706374237742,-891.99,0.00028728,2]
[312860951,1706374237751,-1345.08,0.00028983,2]
[312860952,1706374237760,-269.89100001,0.00029416,6]
[312860953,1706374237769,-1345.08,0.00029416,2]
[312860954,1706374237779,-230.27,0.00029458,2]
[312860955,1706374237788,-1863.0,0.000295,2]
[312860956,1706374237798,-7181.0,0.000295,2]
[312860957,1706374237807,-1127.44,0.00029719,2]
[312860958,1706374237816,-1345.08,0.00029848,2]
[312860959,1706374237825,-654.54,0.00029937,2]
[312860960,1706374237834,-155.0,0.0003,2]
[312860961,1706374237843,-42627.50594063,0.0003,2]
[312860977,1706374237988,-731.43467508,0.0003,2]
[312860979,1706374237999,-1884.04600727,0.0003,2]
[312860981,1706374238009,-1345.08,0.00030281,2]
[312860983,1706374238018,-153.68,0.00030437,2]
[312860986,1706374238027,-230.27,0.000305,2]
[312860987,1706374238036,-1345.08,0.00030714,2]
[312860989,1706374238045,-1127.44,0.00030743,2]
[312860992,1706374238054,-528.39950342,0.00030759,5]
[312860994,1706374238063,-205.0,0.00030877,2]
[312860996,1706374238073,-891.99,0.00030992,2]
[312860997,1706374238083,-1345.08,0.00031146,2]
[312860999,1706374238092,-153.68,0.00031359,2]
[312861001,1706374238100,-230.27,0.00031542,2]
[312861003,1706374238109,-1345.08,0.00031579,2]
[312861005,1706374238118,-191.32,0.00031644,2]
[312861007,1706374238127,-180.0,0.00031644,2]
[312861009,1706374238137,-1127.44,0.00031767,2]
[312861011,1706374238146,-155.0,0.00032,2]
[312861013,1706374238155,-1345.08,0.00032011,2]
[312861015,1706374238165,-153.68,0.00032282,2]
[312861017,1706374238175,-159.96,0.000324,2]
[312861019,1706374238184,-1345.08,0.00032444,2]
[312861021,1706374238194,-230.27,0.00032584,2]
[312861023,1706374238203,-1345.08,0.00032876,2]
[312861026,1706374238212,-500.0,0.00032877,2]
[312861028,1706374238222,-150.524692,0.00033,2]
[312861030,1706374238231,-153.68,0.00033204,2]
[312861031,1706374238241,-891.99,0.00033256,2]
[312861034,1706374238250,-654.54,0.00033263,2]
[312861035,1706374238259,-341.65,0.000335,2]
[312861038,1706374238269,-341.65,0.000335,2]
[312861039,1706374238278,-341.65,0.000335,2]
[312861041,1706374238288,-341.65,0.000335,2]
[312861043,1706374238297,-341.65,0.000335,2]
[312861046,1706374238307,-341.65,0.000335,2]
[312861047,1706374238316,-341.65,0.000335,2]
[312861050,1706374238325,-341.65,0.000335,2]
[312861052,1706374238335,-341.65,0.000335,2]
[312861053,1706374238344,-341.65,0.000335,2]
[312861055,1706374238354,-341.65,0.000335,2]
[312861058,1706374238363,-341.65,0.000335,2]
[312861059,1706374238372,-341.65,0.000335,2]
[312861062,1706374238381,-341.65,0.000335,2]
[312861064,1706374238390,-341.65,0.000335,2]
[312861066,1706374238399,-341.65,0.000335,2]
[312861068,1706374238409,-341.65,0.000335,2]
[312861070,1706374238418,-341.65,0.000335,2]
[312861072,1706374238428,-341.65,0.000335,2]
[312861074,1706374238437,-341.65,0.000335,2]
[312861076,1706374238446,-230.27,0.00033626,2]
[312861078,1706374238455,-4326.76468002,0.00033667,2]
[312861080,1706374238464,-175.0,0.00033736,2]
[312861082,1706374238474,-8336.04953497,0.0003374,2]
[312861084,1706374238486,-2717.38046503,0.0003374,2]
[312861086,1706374238495,-200.0,0.00033921,2]
[312861088,1706374238504,-528.39950342,0.00033932,6]
[312861090,1706374238514,-153.68,0.00034126,2]
[312861092,1706374238522,-2028.91514059,0.00034234,2]
[312861094,1706374238534,-2855.37485941,0.00034234,2]
[312861096,1706374238544,-367.04,0.00034261,15]
[312861098,1706374238553,-500.0,0.00034408,2]
[312861100,1706374238562,-931.83,0.00034541,2]
[312861102,1706374238571,-230.27,0.00034668,2]
[312861104,1706374238580,-345.46,0.00034838,2]
[312861106,1706374238589,-153.68,0.00035049,2]
[312861108,1706374238598,-184.13413816,0.00035449,2]
[312861110,1706374238607,-891.99,0.0003552,2]
[312861112,1706374238617,-169.0,0.00035614,2]
[312861114,1706374238626,-230.27,0.0003571,2]
[312861116,1706374238635,-619.5,0.00035824,2]
[312861118,1706374238644,-162.93,0.00035888,91]
[312861120,1706374238653,-153.68,0.00035971,2]
[312861122,1706374238662,-931.83,0.00036185,2]
[312861124,1706374238671,-654.54,0.00036589,2]
[312861126,1706374238680,-302.75,0.00036883,2]
[312861128,1706374238689,-153.68,0.00036893,2]
[312861130,1706374238699,-634.25570245,0.0003694,15]
[312861132,1706374238708,-1483.62579957,0.00037046,15]
[312861134,1706374238717,-528.39950342,0.00037106,8]
[312861136,1706374238730,-417.42,0.00037501,2]
[312861138,1706374238739,-249.7993,0.00037698,2]
[312861140,1706374238748,-891.99,0.00037784,2]
[312861142,1706374238757,-2000.0,0.00037798,4]
[312861144,1706374238767,-153.68,0.00037816,2]
[312861146,1706374238776,-931.83,0.00037829,2]
[312861147,1706374238783,-591.69,0.00037873,2]
[312861148,1706374238792,-150.0,0.00037897,2]
[312861149,1706374238801,-324.79163949,0.00037899,2]
[312861150,1706374238810,-367.04,0.00037997,15]
[312861151,1706374238820,-150.0,0.00038356,2]
[312861152,1706374238829,-159.96,0.000386,3]
[312861153,1706374238838,-159.96,0.000386,3]
[312861154,1706374238846,-153.68,0.00038738,2]
[312861155,1706374238855,-692.63077835,0.00038794,4]
[312861157,1706374238863,-5650.57092241,0.0003888,2]
[312861159,1706374238872,-5650.57092236,0.0003888,2]
[312861161,1706374238881,-5650.57092236,0.0003888,2]
[312861163,1706374238890,-5650.57092236,0.0003888,2]
[312861165,1706374238899,-5650.57092236,0.00038969,2]
[312861167,1706374238908,-282.4270994,0.0003898,2]
[312861169,1706374238917,-1430.80823834,0.00039,2]
[312861171,1706374238926,-187.4192225,0.00039189,2]
[312861173,1706374238935,-345.46,0.00039192,2]
[312861175,1706374238944,-355.72,0.0003926,2]
[312861177,1706374238953,-150.0,0.00039366,2]
[312861179,1706374238962,-377.41915313,0.00039389,4]
[312861181,1706374238971,-341.65,0.000394,3]
[312861183,1706374238981,-341.65,0.000394,3]
[312861185,1706374238990,-341.65,0.000394,3]
[312861187,1706374239001,-341.65,0.000394,3]
[312861189,1706374239011,-341.65,0.000394,3]
[312861191,1706374239020,-341.65,0.000394,3]
[312861193,1706374239029,-341.65,0.000394,3]
[312861195,1706374239039,-341.65,0.000394,3]
[312861197,1706374239048,-341.65,0.000394,3]
[312861199,1706374239057,-341.65,0.000394,3]
[312861201,1706374239066,-341.65,0.000394,3]
[312861203,1706374239075,-341.65,0.000394,3]
[312861205,1706374239085,-341.65,0.000394,3]
[312861207,1706374239094,-341.65,0.000394,3]
[312861209,1706374239103,-341.65,0.000394,3]
[312861211,1706374239113,-341.65,0.000394,3]
[312861213,1706374239122,-341.65,0.000394,3]
[312861216,1706374239132,-341.65,0.000394,3]
[312861218,1706374239141,-341.65,0.000394,3]
[312861220,1706374239150,-341.65,0.000394,3]
[312861222,1706374239159,-931.83,0.00039473,2]
[312861224,1706374239168,-9676.61262292,0.00039592,2]
[312861226,1706374239178,-153.68,0.0003966,2]
[312861227,1706374239187,-500.0,0.00039669,2]
[312861229,1706374239197,-200.0,0.00039669,2]
[312861231,1706374239206,-157.08633034,0.00039765,2]
[312861233,1706374239215,-500.0,0.00039901,2]
[312861236,1706374239225,-654.54,0.00039916,2]
[312861238,1706374239234,-800.0,0.00039973,2]
[312861239,1706374239243,-200.0,0.00039978,2]
[312861241,1706374239252,-584.76109505,0.00039992,4]
[312861243,1706374239262,-768.05928078,0.00039992,2]
[312861246,1706374239271,-155.0,0.00039992,2]
[312861247,1706374239281,-202.24958339,0.00039992,2]
[312861250,1706374239290,-337.96960043,0.00039994,4]
[312861252,1706374239299,-203.03712124,0.00039994,4]
[312861254,1706374239309,-167.53295169,0.00039994,4]
[312861256,1706374239318,-1122.36571008,0.00039994,2]
[312861258,1706374239327,-19156.27488788,0.00039994,4]
[312861260,1706374239336,-838.44182099,0.00039994,2]
[312861262,1706374239345,-303.74458375,0.00039994,4]
[312861264,1706374239354,-29715.70879408,0.00039994,2]
[312861266,1706374239363,-694.42463172,0.00039994,2]
[312861267,1706374239373,-2614.37433871,0.00039995,4]
[312861270,1706374239382,-155.0,0.00039995,4]
[312861272,1706374239391,-690.0,0.00039996,5]
[312861274,1706374239401,-260.19907905,0.00039996,4]
[312861276,1706374239410,-3591.43127721,0.00039996,4]
[312861278,1706374239419,-883.73608647,0.00039996,4]
[312861280,1706374239428,-385.00214838,0.00039996,4]
[312861282,1706374239437,-1710.95401307,0.00039996,4]
[312861284,1706374239446,-269.92500188,0.00039996,4]
[312861286,1706374239455,-155.20212548,0.00039998,4]
[312861288,1706374239464,-368.01428488,0.00039998,4]
[312861289,1706374239473,-155.0,0.00039998,4]
[312861292,1706374239483,-155.76775533,0.00039998,4]
[312861294,1706374239491,-156.87479774,0.00039998,2]
[312861296,1706374239501,-567.04871616,0.00039998,4]
[312861298,1706374239511,-158.26666448,0.00039998,4]
[312861299,1706374239521,-2309.13609472,0.00039998,4]
[312861301,1706374239530,-235.65900379,0.00039998,2]
[312861303,1706374239539,-156.25209887,0.00039998,4]